fUST/lending_fUST_20250816
["ID","MTS","AMOUNT","RATE_DAILY","PERIOD"]
[379591778,1755342648050,-950.2,0.00021917,3]
[379591780,1755342648060,-480.0,0.00021917,3]
[379591782,1755342648069,-480.0,0.00021917,3]
[379591784,1755342648079,-3161.38,0.00021917,3]
[379591786,1755342648088,-380.0,0.00021917,3]
[379591788,1755342648098,-480.0,0.00021917,3]
[379591790,1755342648107,-460.0,0.00021917,3]
[379591792,1755342648116,-480.0,0.00021917,3]
[379591794,1755342648125,-460.0,0.00021917,3]
[379591796,1755342648134,-480.0,0.00021917,3]
[379591797,1755342648144,-480.0,0.00021917,3]
[379591799,1755342648153,-440.0,0.00021917,3]
[379591801,1755342648163,-480.0,0.00021917,3]
[379591803,1755342648172,-480.0,0.00021917,3]
[379591806,1755342648182,-480.0,0.00021917,3]
[379591808,1755342648192,-480.0,0.00021917,3]
[379591810,1755342648201,-480.0,0.00021917,3]
[379591812,1755342648211,-480.0,0.00021917,3]
[379591814,1755342648221,-480.0,0.00021917,3]
[379591816,1755342648231,-480.0,0.00021917,3]
[379591818,1755342648240,-480.0,0.00021917,3]
[379591820,1755342648250,-480.0,0.00021917,3]
[379591822,1755342648260,-480.0,0.00021917,3]
[379591824,1755342648269,-480.0,0.00021917,3]
[379591826,1755342648279,-1000.0,0.00021917,3]
[379591828,1755342648288,-480.0,0.00021917,3]
[379591830,1755342648297,-480.0,0.00021917,3]
[379591832,1755342648307,-480.0,0.00021917,3]
[379591834,1755342648316,-480.0,0.00021917,3]
[379591836,1755342648326,-480.0,0.00021917,3]
[379591838,1755342648337,-480.0,0.00021917,3]
[379591840,1755342648347,-480.0,0.00021917,3]
[379591842,1755342648356,-480.0,0.00021917,3]
[379591844,1755342648366,-480.0,0.00021917,3]
[379591846,1755342648376,-480.0,0.00021917,3]
[379591848,1755342648386,-480.0,0.00021917,3]
[379591850,1755342648396,-480.0,0.00021917,3]
[379591852,1755342648407,-466.54083904,0.00021917,3]
[379591854,1755342648417,-480.0,0.00021917,2]
[379591856,1755342648426,-480.0,0.00021917,3]
[379591858,1755342648435,-480.0,0.00021917,3]
[379591860,1755342648445,-209.27372587,0.00021917,3]
[379591862,1755342648454,-460.0,0.00021917,3]
[379591864,1755342648463,-460.0,0.00021917,3]
[379591866,1755342648472,-480.0,0.00021917,3]
[379591868,1755342648482,-480.0,0.00021917,3]
[379591870,1755342648491,-480.0,0.00021917,3]
[379591872,1755342648499,-571.14,0.00021917,3]
[379591874,1755342648509,-480.0,0.00021917,3]
[379591876,1755342648518,-480.0,0.00021917,3]
[379591878,1755342648527,-480.0,0.00021917,3]
[379591880,1755342648537,-480.0,0.00021917,3]
[379591882,1755342648548,-480.0,0.00021917,3]
[379591884,1755342648558,-480.0,0.00021917,3]
[379591886,1755342648567,-480.0,0.00021917,3]
[379591888,1755342648576,-480.0,0.00021917,3]
[379591889,1755342648586,-480.0,0.00021917,3]
[379591892,1755342648599,-480.0,0.00021917,3]
[379591894,1755342648609,-480.0,0.00021917,3]
[379591896,1755342648618,-480.0,0.00021917,3]
[379591897,1755342648630,-480.0,0.00021917,3]
[379591899,1755342648640,-480.0,0.00021917,3]
[379591901,1755342648649,-480.0,0.00021917,3]
[379591904,1755342648659,-480.0,0.00021917,3]
[379591905,1755342648667,-480.0,0.00021917,3]
[379591907,1755342648677,-480.0,0.00021917,3]
[379591909,1755342648686,-480.0,0.00021917,3]
[379591911,1755342648695,-480.0,0.00021917,3]
[379591913,1755342648705,-460.0,0.00021917,3]
[379591915,1755342648715,-480.0,0.00021917,3]
[379591917,1755342648724,-400.0,0.00021917,3]
[379591919,1755342648734,-423.64445252,0.00021917,3]
[379591921,1755342648744,-480.0,0.00021917,3]
[379591923,1755342648754,-400.0,0.00021917,3]
[379591925,1755342648763,-460.0,0.00021917,3]
[379591927,1755342648773,-480.0,0.00021917,3]
[379591929,1755342648783,-460.0,0.00021917,3]
[379591931,1755342648792,-480.0,0.00021917,3]
[379591933,1755342648802,-480.0,0.00021917,3]
[379591935,1755342648812,-480.0,0.00021917,3]
[379591937,1755342648821,-480.0,0.00021917,3]
[379591939,1755342648831,-480.0,0.00021917,3]
[379591941,1755342648840,-464.31323175,0.00021917,3]
[379591942,1755342648849,-480.0,0.00021917,3]
[379591943,1755342648859,-676.49,0.00021917,3]
[379591944,1755342648868,-480.0,0.00021917,3]
[379591945,1755342648878,-480.0,0.00021917,3]
[379591946,1755342648888,-480.0,0.00021917,3]
[379591947,1755342648897,-480.0,0.00021917,3]
[379591948,1755342648906,-480.0,0.00021917,3]
[379591949,1755342648916,-480.0,0.00021917,3]
[379591950,1755342648926,-480.0,0.00021917,3]
[379591951,1755342648935,-480.0,0.00021917,3]
[379591952,1755342648945,-490.15048165,0.00021917,3]
[379591953,1755342648954,-500.95027838,0.00021917,3]
[379591954,1755342648964,-480.0,0.00021917,3]
[379591955,1755342648973,-480.0,0.00021917,3]
[379591957,1755342648983,-480.0,0.00021917,3]
[379591959,1755342648992,-480.0,0.00021917,3]
[379591961,1755342649002,-480.0,0.00021917,3]
[379591963,1755342649011,-480.0,0.00021917,3]
[379591965,1755342649020,-480.0,0.00021917,3]
[379591967,1755342649030,-480.0,0.00021917,3]
[379591969,1755342649040,-480.0,0.00021917,3]
[379591971,1755342649050,-480.0,0.00021917,3]
[379591973,1755342649059,-480.0,0.00021917,3]
[379591975,1755342649069,-460.0,0.00021917,3]
[379591977,1755342649078,-480.0,0.00021917,3]
[379591979,1755342649087,-480.0,0.00021917,3]
[379591981,1755342649096,-480.0,0.00021917,3]
[379591983,1755342649106,-480.0,0.00021917,3]
[379591985,1755342649115,-480.0,0.00021917,3]
[379591986,1755342649125,-480.0,0.00021917,3]
[379591988,1755342649135,-480.0,0.00021917,3]
[379591990,1755342649144,-2222.12,0.00021917,3]
[379591992,1755342649153,-480.0,0.00021917,3]
[379591994,1755342649162,-480.0,0.00021917,3]
[379591996,1755342649172,-480.0,0.00021917,3]
[379591998,1755342649181,-1153.63,0.00021917,3]
[379592000,1755342649191,-460.0,0.00021917,3]
[379592002,1755342649200,-480.0,0.00021917,3]
[379592004,1755342649210,-782.86,0.00021917,3]
[379592006,1755342649219,-480.0,0.00021917,3]
[379592008,1755342649229,-480.0,0.00021917,3]
[379592010,1755342649239,-480.0,0.00021917,3]
[379592012,1755342649248,-480.0,0.00021917,3]
[379592014,1755342649258,-480.0,0.00021917,3]
[379592016,1755342649267,-480.0,0.00021917,3]
[379592018,1755342649276,-480.0,0.00021917,3]
[379592020,1755342649286,-658.69,0.00021917,3]
[379592022,1755342649295,-480.0,0.00021917,3]
[379592024,1755342649304,-480.0,0.00021917,3]
[379592026,1755342649313,-480.0,0.00021917,3]
[379592028,1755342649322,-480.0,0.00021917,3]
[379592030,1755342649331,-174.33755443,0.00021917,3]
[379592032,1755342649341,-480.0,0.00021917,3]
[379592034,1755342649351,-1160.82,0.00021917,3]
[379592035,1755342649360,-480.0,0.00021917,3]
[379592037,1755342649370,-480.0,0.00021917,3]
[379592039,1755342649379,-480.0,0.00021917,3]
[379592041,1755342649388,-480.0,0.00021917,3]
[379592043,1755342649398,-480.0,0.00021917,3]
[379592045,1755342649407,-460.0,0.00021917,3]
[379592047,1755342649417,-480.0,0.00021917,3]
[379592049,1755342649426,-2134.91,0.00021917,3]
[379592051,1755342649435,-480.0,0.00021917,3]
[379592053,1755342649445,-480.0,0.00021917,3]
[379592055,1755342649454,-803.18,0.00021917,3]
[379592057,1755342649464,-460.0,0.00021917,3]
[379592059,1755342649473,-460.0,0.00021917,3]
[379592061,1755342649483,-460.0,0.00021917,3]
[379592063,1755342649494,-226.5283538,0.00021917,3]
[379592065,1755342649503,-480.0,0.00021917,3]
[379592067,1755342649512,-480.0,0.00021917,3]
[379592069,1755342649522,-480.0,0.00021917,3]
[379592071,1755342649531,-480.0,0.00021917,3]
[379592073,1755342649541,-480.0,0.00021917,3]
[379592075,1755342649553,-480.0,0.00021917,3]
[379592077,1755342649563,-480.0,0.00021917,3]
[379592079,1755342649572,-672.12,0.00021917,3]
[379592081,1755342649581,-480.0,0.00021917,3]
[379592083,1755342649590,-379.3548921,0.00021917,3]
[379592085,1755342649603,-480.0,0.00021917,3]
[379592087,1755342649612,-480.0,0.00021917,3]
[379592089,1755342649622,-480.0,0.00021917,3]
[379592091,1755342649631,-480.0,0.00021917,3]
[379592093,1755342649641,-480.0,0.00021917,3]
[379592095,1755342649650,-341.27315417,0.00021917,3]
[379592097,1755342649659,-480.0,0.00021917,3]
[379592099,1755342649670,-329.33654808,0.00021917,3]
[379592101,1755342649679,-480.0,0.00021917,3]
[379592103,1755342649688,-480.0,0.00021917,3]
[379592105,1755342649698,-480.0,0.00021917,3]
[379592107,1755342649708,-480.0,0.00021917,3]
[379592109,1755342649718,-794.83,0.00021917,3]
[379592111,1755342649727,-480.0,0.00021917,3]
[379592112,1755342649736,-480.0,0.00021917,3]
[379592114,1755342649746,-480.0,0.00021917,3]
[379592117,1755342649756,-480.0,0.00021917,3]
[379592119,1755342649765,-480.0,0.00021917,3]
[379592121,1755342649775,-651.78,0.00021917,3]
[379592123,1755342649785,-800.06,0.00021917,3]
[379592124,1755342649795,-480.0,0.00021917,3]
[379592126,1755342649805,-480.0,0.00021917,3]
[379592128,1755342649815,-480.0,0.00021917,3]
[379592130,1755342649824,-480.0,0.00021917,3]
[379592132,1755342649834,-480.0,0.00021917,3]
[379592134,1755342649847,-166.75062327,0.00021917,3]
[379592136,1755342649857,-480.0,0.00021917,3]
[379592138,1755342649867,-480.0,0.00021917,3]
[379592140,1755342649876,-480.0,0.00021917,3]
[379592142,1755342649886,-480.0,0.00021917,3]
[379592144,1755342649895,-480.0,0.00021917,3]
[379592146,1755342649906,-480.0,0.00021917,3]
[379592148,1755342649916,-237.24497821,0.00021917,3]
[379592150,1755342649926,-480.0,0.00021917,3]
[379592152,1755342649935,-480.0,0.00021917,3]
[379592154,1755342649946,-480.0,0.00021917,3]
[379592156,1755342649955,-480.0,0.00021917,3]
[379592159,1755342649965,-480.0,0.00021917,3]
[379592161,1755342649975,-460.0,0.00021917,3]
[379592163,1755342649985,-480.0,0.00021917,3]
[379592164,1755342649995,-480.0,0.00021917,3]
[379592166,1755342650004,-1003.42306132,0.00021917,3]
[379592168,1755342650014,-460.0,0.00021917,3]
[379592170,1755342650023,-596.86,0.00021917,3]
[379592172,1755342650033,-322.55528456,0.00021917,3]
[379592174,1755342650043,-480.0,0.00021917,3]
[379592176,1755342650052,-480.0,0.00021917,3]
[379592178,1755342650062,-480.0,0.00021917,3]
[379592180,1755342650071,-480.0,0.00021917,3]
[379592182,1755342650081,-480.0,0.00021917,3]
[379592184,1755342650090,-527.35488762,0.00021917,3]
[379592186,1755342650099,-520.04,0.00021917,3]
[379592188,1755342650109,-480.0,0.00021917,3]
[379592190,1755342650118,-403.48499338,0.00021917,3]
[379592192,1755342650128,-461.95410795,0.00021917,3]
[379592194,1755342650137,-480.0,0.00021917,3]
[379592196,1755342650146,-385.14130556,0.00021917,3]
[379592198,1755342650156,-463.30211484,0.00021917,3]
[379592200,1755342650165,-460.0,0.00021917,3]
[379592202,1755342650175,-480.0,0.00021917,3]
[379592204,1755342650184,-480.0,0.00021917,3]
[379592206,1755342650193,-468.98016125,0.00021917,3]
[379592208,1755342650203,-480.0,0.00021917,3]
[379592210,1755342650212,-480.0,0.00021917,3]
[379592211,1755342650221,-480.0,0.00021917,3]
[379592214,1755342650231,-440.0,0.00021917,3]
[379592215,1755342650240,-480.0,0.00021917,3]
[379592217,1755342650250,-480.0,0.00021917,3]
[379592219,1755342650259,-460.85456268,0.00021917,3]
[379592221,1755342650269,-480.0,0.00021917,3]
[379592223,1755342650278,-711.87,0.00021917,3]
[379592225,1755342650287,-445.44377966,0.00021917,3]
[379592227,1755342650297,-420.0,0.00021917,3]
[379592229,1755342650306,-480.0,0.00021917,3]
[379592231,1755342650315,-615.23,0.00021917,3]
[379592233,1755342650324,-2192.93,0.00021917,3]
[379592235,1755342650334,-460.0,0.00021917,3]
[379592237,1755342650343,-6881.61,0.00021917,3]
[379592239,1755342650352,-480.0,0.00021917,3]
[379592241,1755342650363,-480.0,0.00021917,3]
[379592243,1755342650373,-480.0,0.00021917,3]
[379592245,1755342650383,-480.0,0.00021917,3]
[379592247,1755342650392,-460.0,0.00021917,3]
[379592249,1755342650402,-460.0,0.00021917,3]
[379592266,1755342650546,-480.0,0.00021917,3]
[379592268,1755342650560,-480.0,0.00021917,3]
[379592269,1755342650570,-754.78,0.00021917,3]
[379592272,1755342650580,-480.0,0.00021917,3]
[379592273,1755342650590,-480.0,0.00021917,3]
[379592275,1755342650599,-480.0,0.00021917,3]
[379592277,1755342650608,-327.02905511,0.00021917,3]
[379592279,1755342650617,-480.0,0.00021917,3]
[379592281,1755342650627,-221.76112064,0.00021917,3]
[379592283,1755342650637,-939.01,0.00021917,3]
[379592285,1755342650646,-480.0,0.00021917,3]
[379592287,1755342650655,-215.68093138,0.00021917,3]
[379592289,1755342650665,-500.0,0.00021917,3]
[379592291,1755342650674,-500.0,0.00021917,3]
[379592293,1755342650683,-500.0,0.00021917,3]
[379592295,1755342650693,-462.1417622,0.00021917,3]
[379592297,1755342650703,-480.0,0.00021917,3]
[379592299,1755342650712,-480.0,0.00021917,3]
[379592301,1755342650722,-480.0,0.00021917,3]
[379592303,1755342650731,-480.0,0.00021917,3]
[379592305,1755342650740,-480.0,0.00021917,3]
[379592307,1755342650749,-480.0,0.00021917,3]
[379592309,1755342650759,-480.0,0.00021917,3]
[379592311,1755342650768,-480.0,0.00021917,3]
[379592313,1755342650778,-567.67,0.00021917,3]
[379592315,1755342650787,-480.0,0.00021917,3]
[379592317,1755342650796,-500.29,0.00021917,3]
[379592319,1755342650806,-480.0,0.00021917,3]
[379592321,1755342650815,-480.0,0.00021917,3]
[379592323,1755342650824,-367.35485561,0.00021917,3]
[379592325,1755342650834,-460.0,0.00021917,3]
[379592327,1755342650843,-6031.99,0.00021917,3]
[379592328,1755342650852,-480.0,0.00021917,3]
[379592331,1755342650863,-1699.12,0.00021917,3]
[379592333,1755342650872,-480.0,0.00021917,3]
[379592335,1755342650881,-480.0,0.00021917,3]
[379592336,1755342650890,-480.0,0.00021917,3]
[379592338,1755342650899,-480.0,0.00021917,3]
[379592340,1755342650909,-480.0,0.00021917,3]
[379592342,1755342650919,-480.0,0.00021917,3]
[379592344,1755342650928,-561.1,0.00021917,3]
[379592346,1755342650937,-4257.88,0.00021917,3]
[379592348,1755342650947,-480.0,0.00021917,3]
[379592350,1755342650956,-480.0,0.00021917,3]
[379592352,1755342650966,-480.0,0.00021917,3]
[379592354,1755342650975,-480.0,0.00021917,3]
[379592356,1755342650985,-460.0,0.00021917,3]
[379592358,1755342650994,-851.51,0.00021917,3]
[379592360,1755342651003,-782.51,0.00021917,3]
[379592362,1755342651013,-480.0,0.00021917,3]
[379592364,1755342651022,-480.0,0.00021917,3]
[379592366,1755342651031,-480.0,0.00021917,3]
[379592368,1755342651039,-480.0,0.00021917,3]
[379592370,1755342651049,-480.0,0.00021917,3]
[379592372,1755342651058,-480.0,0.00021917,3]
[379592373,1755342651067,-480.0,0.00021917,3]
[379592374,1755342651076,-480.0,0.00021917,3]
[379592375,1755342651085,-480.0,0.00021917,3]
[379592376,1755342651094,-480.0,0.00021917,3]
[379592377,1755342651103,-1994.72,0.00021917,3]
[379592378,1755342651112,-420.0,0.00021917,3]
[379592379,1755342651122,-480.0,0.00021917,3]
[379592380,1755342651130,-480.0,0.00021917,3]
[379592381,1755342651139,-12053.87,0.00021917,3]
[379592382,1755342651148,-480.0,0.00021917,3]
[379592383,1755342651157,-497.53,0.00021917,3]
[379592384,1755342651166,-480.0,0.00021917,3]
[379592385,1755342651175,-574.02,0.00021917,3]
[379592386,1755342651184,-480.0,0.00021917,3]
[379592387,1755342651193,-480.0,0.00021917,3]
[379592388,1755342651202,-480.0,0.00021917,3]
[379592389,1755342651211,-480.0,0.00021917,3]
[379592390,1755342651220,-480.0,0.00021917,3]
[379592391,1755342651229,-480.0,0.00021917,3]
[379592392,1755342651239,-480.0,0.00021917,3]
[379592393,1755342651248,-480.0,0.00021917,3]
[379592394,1755342651256,-480.0,0.00021917,3]
[379592395,1755342651265,-460.0,0.00021917,3]
[379592396,1755342651275,-480.0,0.00021917,3]
[379592397,1755342651284,-1008.12,0.00021917,3]
[379592398,1755342651292,-480.0,0.00021917,3]
[379592399,1755342651301,-480.0,0.00021917,3]
[379592400,1755342651311,-480.0,0.00021917,3]
[379592401,1755342651320,-480.0,0.00021917,3]
[379592402,1755342651329,-480.0,0.00021917,3]
[379592403,1755342651338,-480.0,0.00021917,3]
[379592404,1755342651347,-638.81,0.00021917,3]
[379592405,1755342651355,-605.98,0.00021917,3]
[379592406,1755342651364,-480.0,0.00021917,3]
[379592407,1755342651374,-480.0,0.00021917,3]
[379592408,1755342651383,-480.0,0.00021917,3]
[379592409,1755342651392,-480.0,0.00021917,3]
[379592410,1755342651401,-1093.2,0.00021917,3]
[379592411,1755342651410,-480.0,0.00021917,3]
[379592412,1755342651419,-480.0,0.00021917,3]
[379592413,1755342651428,-460.0,0.00021917,3]
[379592415,1755342651437,-480.0,0.00021917,3]
[379592416,1755342651446,-1143.75,0.00021917,3]
[379592418,1755342651455,-480.0,0.00021917,3]
[379592420,1755342651464,-865.46,0.00021917,3]
[379592422,1755342651474,-480.0,0.00021917,3]
[379592424,1755342651483,-848.74,0.00021917,3]
[379592426,1755342651492,-480.0,0.00021917,3]
[379592428,1755342651502,-376.08864186,0.00021917,3]
[379592430,1755342651511,-480.0,0.00021917,3]
[379592432,1755342651521,-697.99,0.00021917,3]
[379592434,1755342651530,-480.0,0.00021917,3]
[379592436,1755342651539,-480.0,0.00021917,3]
[379592438,1755342651551,-480.0,0.00021917,3]
[379592440,1755342651561,-2558.21,0.00021917,3]
[379592442,1755342651570,-480.0,0.00021917,3]
[379592444,1755342651580,-480.0,0.00021917,3]
[379592446,1755342651589,-480.0,0.00021917,3]
[379592448,1755342651600,-480.0,0.00021917,3]
[379592450,1755342651609,-6863.48,0.00021917,3]
[379592452,1755342651619,-900.32,0.00021917,3]
[379592454,1755342651629,-1754.29,0.00021917,3]
[379592456,1755342651638,-1081.23,0.00021917,3]
[379592458,1755342651647,-480.0,0.00021917,3]
[379592460,1755342651657,-603.31184418,0.00021917,3]
[379592462,1755342651666,-689.96,0.00021917,3]
[379592464,1755342651675,-480.0,0.00021917,3]
[379592466,1755342651684,-480.0,0.00021917,3]
[379592468,1755342651694,-480.0,0.00021917,3]
[379592470,1755342651703,-480.0,0.00021917,3]
[379592472,1755342651713,-480.0,0.00021917,3]
[379592473,1755342651722,-797.12,0.00021917,3]
[379592475,1755342651731,-461.19426485,0.00021917,3]
[379592477,1755342651741,-509.83860389,0.00021917,3]
[379592479,1755342651750,-480.0,0.00021917,3]
[379592481,1755342651760,-480.0,0.00021917,3]
[379592483,1755342651770,-400.0,0.00021917,3]
[379592485,1755342651783,-480.0,0.00021917,3]
[379592487,1755342651793,-480.0,0.00021917,3]
[379592489,1755342651802,-440.0,0.00021917,3]
[379592491,1755342651811,-607.52737369,0.00021917,3]
[379592493,1755342651820,-480.0,0.00021917,3]
[379592495,1755342651829,-480.0,0.00021917,3]
[379592497,1755342651839,-480.0,0.00021917,3]
[379592499,1755342651849,-480.0,0.00021917,3]
[379592501,1755342651858,-480.0,0.00021917,3]
[379592503,1755342651868,-480.0,0.00021917,3]
[379592505,1755342651877,-480.0,0.00021917,3]
[379592507,1755342651887,-480.0,0.00021917,3]
[379592509,1755342651897,-1594.34,0.00021917,3]
[379592511,1755342651908,-494.98500153,0.00021917,3]
[379592513,1755342651917,-480.0,0.00021917,3]
[379592515,1755342651926,-480.0,0.00021917,3]
[379592517,1755342651936,-645.51,0.00021917,3]
[379592519,1755342651945,-480.0,0.00021917,3]
[379592521,1755342651954,-480.0,0.00021917,3]
[379592523,1755342651963,-9894.35214501,0.00021932,2]
[379592525,1755342651972,-288.18859503,0.00021941,2]
[379592527,1755342651981,-153.32251726,0.00021945,2]
[379592529,1755342651991,-500.0,0.00021966,2]
[379592531,1755342652000,-502.57281991,0.00021973,2]
[379592533,1755342652009,-209.62,0.00022,7]
[379592535,1755342652019,-7400.36,0.00022,7]
[379592537,1755342652028,-383.85052005,0.0002203,2]
[379592539,1755342652038,-5000.0,0.00022042,3]
[379592540,1755342652047,-288.18859503,0.00022083,2]
[379592542,1755342652056,-173.62,0.000221,2]
[379592544,1755342652066,-153.32251726,0.00022137,2]
[379592546,1755342652075,-2384.40692874,0.00022142,2]
[379596162,1755342691337,200.0,0.00028539,120]
[379601055,1755342751713,200.0,0.00027624,120]
[379601073,1755342811141,200.0,0.00028493,120]
[379601121,1755342889309,-156.49865956,0.000199,2]
[379601123,1755342891373,-288.25799454,0.000199,2]
[379601124,1755342893421,-257.3319705,0.000199,2]
[379601125,1755342896820,-384.37344059,0.000199,2]
[379601126,1755342898934,-161.83628158,0.000199,2]
[379601128,1755342901682,-526.46780426,0.000199,2]
[379601130,1755342903465,-244.05858128,0.000199,2]
[379601174,1755342915017,-300.0,0.00020407,2]
[379601175,1755342915040,-158.46569008,0.00020481,2]
[379601176,1755342921560,-151.90017713,0.000199,2]
[379601177,1755342924113,-286.05467285,0.000199,2]
[379601179,1755342928101,-191.14157386,0.000199,2]
[379601180,1755342934827,-406.4899238,0.000199,2]
[379601181,1755342937610,-163.04757928,0.000199,2]
[379601182,1755342940151,-157.81537883,0.000199,2]
[379601183,1755342941796,-165.9893775,0.000199,2]
[379601184,1755342944083,-325.99764144,0.000199,2]
[379601185,1755342947565,-470.35178331,0.000199,2]
[379601186,1755342949276,-290.9451958,0.000199,2]
[379601187,1755342954750,-182.30103446,0.000199,2]
[379601188,1755342956932,-177.24532336,0.000199,2]
[379601189,1755342959345,-180.90390237,0.000199,2]
[379601190,1755342961611,-182.09043025,0.000199,2]
[379601191,1755342963748,-641.26889547,0.000199,2]
[379601192,1755342967382,-195.77007257,0.000199,2]
[379601193,1755342970048,-241.34877261,0.000199,2]
[379601195,1755342972404,-272.30576162,0.000199,2]
[379601196,1755342974517,-333.38460031,0.000199,2]
[379601197,1755342976774,-301.76915546,0.000199,2]
[379601198,1755342978356,-318.40630692,0.000199,2]
[379601199,1755342981352,-232.25592723,0.000199,2]
[379601200,1755342984675,-240.19874226,0.000199,2]
[379601201,1755342986397,-397.38132818,0.000199,2]
[379601202,1755342989792,-189.8621937,0.000199,2]
[379601203,1755342993113,-199.6190143,0.000199,2]
[379601204,1755342995760,-152.0332552,0.000199,2]
[379601205,1755342998006,-387.1542732,0.000199,2]
[379601206,1755342999830,-320.61070011,0.000199,2]
[379601207,1755343003523,-355.15554427,0.000199,2]
[379601208,1755343003589,1514.62152486,0.00028,120]
[379601209,1755343005707,-300.51169979,0.000199,2]
[379601210,1755343009753,-164.32435643,0.000199,2]
[379601211,1755343012054,-41.58735028,0.000199,2]
[379601212,1755343012077,-234.08067325,0.00020407,2]
[379601213,1755343013636,-65.91932675,0.00020407,2]
[379601214,1755343013658,-119.53517975,0.00020407,2]
[379601215,1755343015905,-312.73382983,0.00020407,2]
[379601217,1755343017520,-335.08732731,0.00020407,2]
[379601218,1755343020291,-327.36808057,0.00020407,2]
[379601219,1755343024755,-105.27558254,0.00020407,2]
[379601220,1755343024781,-187.41557551,0.00020408,2]
[379601221,1755343027339,-267.81692702,0.00020408,2]
[379601222,1755343030896,-251.60297646,0.00020016,2]
[379601223,1755343031445,302.0,0.00028767,120]
[379601224,1755343032416,-405.64150068,0.00020016,2]
[379601225,1755343036280,-179.98438531,0.00020016,2]
[379601226,1755343038023,-223.64322291,0.00020016,2]
[379601227,1755343040671,-329.44744797,0.00020016,2]
[379601228,1755343042711,-224.62131133,0.00020016,2]
[379601229,1755343048098,-260.3809857,0.00020016,2]
[379601230,1755343049718,-207.86366708,0.00020016,2]
[379601231,1755343051493,-566.29712547,0.00020016,2]
[379601232,1755343053623,-263.97913976,0.00020016,2]
[379601233,1755343056891,-442.69755408,0.00020016,2]
[379601234,1755343058556,-203.2204041,0.00020016,2]
[379601235,1755343061399,-455.81842423,0.00020016,2]
[379601237,1755343063230,-222.61643756,0.00020016,2]
[379601238,1755343065469,-168.16524064,0.00020016,2]
[379601239,1755343068066,-464.00165026,0.00020016,2]
[379601240,1755343072813,-368.1686374,0.00020016,2]
[379601241,1755343075114,-300.0,0.00020016,2]
[379601242,1755343078011,-320.1196674,0.00020016,2]
[379601243,1755343087895,-296.37832349,0.00020016,2]
[379601244,1755343090801,-185.1706466,0.00019848,2]
[379601245,1755343090825,-317.21816095,0.00020016,2]
[379601246,1755343092544,-423.16353644,0.00020016,2]
[379601247,1755343095708,-248.43474938,0.00020016,2]
[379601248,1755343095734,-25.81816103,0.0002048,2]
[379601249,1755343097437,-359.75874173,0.000199,2]
[379601250,1755343099082,-166.9356753,0.000199,2]
[379601252,1755343111017,-286.07505217,0.000199,2]
[379601253,1755343112700,-165.35138601,0.000199,2]
[379601255,1755343117086,-239.00817221,0.000199,2]
[379601256,1755343119509,-195.41549437,0.000199,2]
[379601257,1755343121205,-164.67628071,0.000199,2]
[379601258,1755343123520,-302.13548031,0.000199,2]
[379601259,1755343126570,-265.04319423,0.000199,2]